bitfinex/quotes_BTCUSD_20250623
["timestamp","ask_amount","ask_price","bid_price","bid_amount"]
[1750717361968,0.09564073,105550.0,105520.0,0.20846684]
[1750717362204,0.0325,105540.0,105530.0,0.20863579]
[1750717362422,0.0325,105540.0,105530.0,0.39815535]
[1750717362665,0.0325,105540.0,105530.0,0.21794666]
[1750717362906,0.00013887,105550.0,105540.0,0.22740067]
[1750717363668,0.00013887,105550.0,105540.0,0.21792622]
[1750717363891,0.00013887,105550.0,105540.0,0.19904]
[1750717364066,0.04140959,105550.0,105540.0,0.01894989]
[1750717364265,0.05894158,105550.0,105540.0,0.21792622]
[1750717364537,0.05894158,105550.0,105540.0,0.30379851]
[1750717364713,0.00890959,105550.0,105540.0,0.36729851]
[1750717365166,0.00013887,105550.0,105540.0,0.79977855]
[1750717365380,0.0158187,105600.0,105540.0,0.79977855]
[1750717365381,0.0465187,105600.0,105590.0,0.21782256]
[1750717365586,0.07280026,105600.0,105590.0,0.21782256]
[1750717365791,0.07326334,105600.0,105580.0,0.4073318]
[1750717365996,0.04256334,105600.0,105590.0,0.19888246]
[1750717366167,0.0250423,105600.0,105580.0,0.09550186]
[1750717366384,0.5057499,105600.0,105580.0,0.28493154]
[1750717366721,0.5057263,105600.0,105580.0,0.21784289]
[1750717366834,0.07324626,105600.0,105580.0,0.20837203]
[1750717367047,0.07424626,105600.0,105580.0,0.22731384]
[1750717367249,0.43248004,105590.0,105570.0,0.01894467]
[1750717367457,0.04096052,105590.0,105570.0,0.23680791]
[1750717367668,0.49095792,105590.0,105570.0,0.22733482]
[1750717367876,0.05847788,105590.0,105570.0,0.21786324]
[1750717368089,0.0322,105590.0,105580.0,0.00947149]
[1750717368312,0.0322,105590.0,105570.0,0.21786324]
[1750717368519,0.03211266,105590.0,105580.0,0.21784311]
[1750717368730,0.45178364,105600.0,105590.0,0.19888246]
[1750717368933,0.36503432,105600.0,105590.0,0.22729315]
[1750717369363,0.02503432,105600.0,105590.0,0.22729315]
[1750717369785,0.02503432,105600.0,105590.0,0.21782319]
[1750717369985,0.01628178,105600.0,105590.0,0.22729315]
[1750717371680,0.44876182,105600.0,105590.0,0.22729315]
[1750717372141,0.01628178,105600.0,105590.0,0.22729315]
[1750717372366,0.02504502,105600.0,105590.0,0.22929315]
[1750717373906,0.02504502,105600.0,105590.0,0.38899501]
[1750717374114,0.02504502,105600.0,105590.0,0.22929315]
[1750717374339,0.02504502,105600.0,105590.0,0.32479501]
[1750717374955,0.02504502,105600.0,105590.0,0.35589501]
[1750717375162,0.01628178,105600.0,105590.0,0.38899501]
[1750717377364,0.01628178,105600.0,105590.0,0.38999501]
[1750717377610,0.01628178,105600.0,105590.0,0.59015501]
[1750717378655,0.01628178,105600.0,105590.0,0.92815501]
[1750717378881,0.01628178,105600.0,105590.0,0.93215501]
[1750717379330,0.01628178,105600.0,105590.0,0.59215501]
[1750717379550,0.01628178,105600.0,105590.0,0.59207501]
[1750717380385,0.01628178,105600.0,105590.0,1.02455505]
[1750717380853,0.01628178,105600.0,105590.0,1.41455505]
[1750717381088,0.01628178,105600.0,105590.0,1.66455505]
[1750717381323,0.01559891,105600.0,105590.0,1.39022447]
[1750717381536,0.00032378,105650.0,105640.0,0.2174196]
[1750717381751,0.00923219,105650.0,105640.0,0.31292146]
[1750717381968,0.00923219,105650.0,105640.0,0.51352146]
[1750717382197,0.00923219,105650.0,105640.0,0.31292146]
[1750717382429,0.00923219,105650.0,105640.0,0.54532146]
[1750717382855,0.00923219,105650.0,105640.0,0.57732146]
[1750717383754,0.0828187,105700.0,105680.0,0.19871308]
[1750717383976,0.46248004,105690.0,105670.0,0.00946333]
[1750717384210,0.04753331,105690.0,105680.0,0.20817533]
[1750717384426,0.48001335,105690.0,105680.0,0.20817533]
[1750717384649,0.46248004,105690.0,105680.0,0.00946252]
[1750717384903,0.03,105670.0,105650.0,0.19874215]
[1750717385119,0.03,105670.0,105660.0,0.21767826]
[1750717385335,0.03,105670.0,105660.0,0.21767835]
[1750717385551,0.03,105680.0,105660.0,0.19875023]
[1750717385789,0.0326,105660.0,105650.0,0.22716332]
[1750717386019,0.0326,105660.0,105650.0,0.20823407]
[1750717386237,0.46508004,105660.0,105650.0,0.21769892]
[1750717386464,0.46508004,105660.0,105650.0,0.20823445]
[1750717386683,0.0326,105660.0,105650.0,0.19876951]
[1750717386895,0.46508004,105660.0,105650.0,0.2271637]
[1750717387101,0.0326,105660.0,105650.0,0.2271637]
[1750717387323,0.46508004,105660.0,105650.0,0.21769912]
[1750717387600,0.46508004,105660.0,105650.0,0.21323445]
[1750717387816,0.0326,105660.0,105650.0,0.2321637]
[1750717388017,0.43248004,105660.0,105650.0,0.20376951]
[1750717388232,0.34,105680.0,105670.0,0.18926847]
[1750717388452,0.34,105680.0,105670.0,0.2176581]
[1750717388453,0.80528004,105680.0,105670.0,0.2176581]
[1750717388680,0.46528004,105680.0,105670.0,0.19873189]
[1750717388926,0.46528004,105680.0,105670.0,0.20819522]
[1750717389150,0.46528004,105680.0,105670.0,0.22712143]
[1750717389405,0.46528004,105680.0,105670.0,0.22712152]
[1750717389631,0.46528004,105680.0,105660.0,0.18928639]
[1750717389863,0.46528004,105670.0,105660.0,0.20821466]
[1750717390096,0.46528004,105670.0,105660.0,0.1987507]
[1750717390298,0.0328,105670.0,105660.0,0.1987507]
[1750717390538,0.0328,105650.0,105620.0,0.00946709]
[1750717390770,0.0328,105640.0,105620.0,0.30388743]
[1750717391016,0.0328,105640.0,105630.0,0.21774069]
[1750717391234,0.0328,105630.0,105620.0,0.19891839]
[1750717391481,0.46528004,105630.0,105620.0,0.21785383]
[1750717391720,0.46528004,105630.0,105620.0,0.18949696]
[1750717391721,0.0328,105630.0,105620.0,0.18949696]
[1750717391946,0.46528004,105630.0,105620.0,0.18949696]
[1750717392163,0.0328,105630.0,105620.0,0.2273673]
[1750717392384,0.0328,105630.0,105620.0,0.23683466]
[1750717392650,0.0328,105630.0,105620.0,0.23783466]
[1750717392863,0.46558004,105640.0,105630.0,0.22720671]
[1750717393554,0.0331,105640.0,105630.0,0.22720671]
[1750717393774,0.46558004,105640.0,105630.0,0.22720671]
[1750717393999,0.46558004,105640.0,105630.0,0.21774051]
[1750717394215,0.0331,105640.0,105630.0,0.23967344]
[1750717394419,0.46549271,105640.0,105630.0,0.23967344]
[1750717394630,0.03301267,105640.0,105630.0,0.31607128]
[1750717394835,0.04584085,105660.0,105650.0,0.21769885]
[1750717394836,0.5313,105660.0,105650.0,0.21769885]
[1750717395048,0.43248004,105660.0,105650.0,0.20823427]
[1750717395271,0.43248004,105660.0,105650.0,0.19876942]
[1750717395502,0.43248004,105660.0,105650.0,0.21769939]
[1750717395740,0.43248004,105660.0,105640.0,0.21770378]
[1750717395992,0.43248004,105650.0,105640.0,0.21770378]
[1750717396243,0.43248004,105660.0,105650.0,0.20821889]
[1750717396502,0.43248004,105670.0,105660.0,0.22714213]
[1750717396732,0.43248004,105670.0,105660.0,0.22714257]
[1750717396733,0.01762772,105670.0,105660.0,0.22714257]
[1750717396961,0.32914,105680.0,105670.0,0.1987318]
[1750717397166,0.78226897,105680.0,105660.0,0.20821368]
[1750717397369,0.78226897,105680.0,105650.0,0.18928946]
[1750717397370,0.16070186,105670.0,105650.0,0.19875422]
[1750717397622,0.00881333,105670.0,105650.0,0.2082188]
[1750717397848,0.04301333,105670.0,105660.0,0.1987507]
[1750717398094,0.47549337,105670.0,105660.0,0.22714275]
[1750717398305,0.04101333,105670.0,105660.0,0.21767897]
[1750717398539,0.04101333,105670.0,105660.0,0.20821492]
[1750717398766,0.47349337,105670.0,105660.0,0.20821492]
[1750717398993,0.47349337,105670.0,105660.0,0.00946431]
[1750717399206,0.04101333,105670.0,105660.0,0.20821475]
[1750717399430,0.04101333,105670.0,105660.0,0.2271424]
[1750717399664,0.26531226,105690.0,105670.0,0.18926676]
[1750717399886,0.99346194,105680.0,105660.0,0.18928639]
[1750717400142,0.34768271,105680.0,105660.0,0.18928639]
[1750717400380,0.43248004,105670.0,105660.0,0.20821457]
[1750717400858,0.43248004,105670.0,105660.0,0.21021475]
[1750717401075,0.43248004,105670.0,105660.0,0.1987507]
[1750717401295,0.43248004,105670.0,105660.0,0.18928639]
[1750717401519,0.5279819,105670.0,105660.0,0.18928639]
[1750717402148,0.43248004,105670.0,105660.0,0.20821475]
[1750717402591,0.0309,105680.0,105670.0,0.20818412]
[1750717402841,0.0309,105680.0,105670.0,0.22710997]
[1750717403075,0.00013873,105690.0,105680.0,0.21763706]
[1750717403294,0.00013873,105690.0,105670.0,0.21764736]
[1750717403295,0.89549881,105690.0,105670.0,0.21764736]
[1750717403507,0.43248004,105680.0,105670.0,0.23657312]
[1750717403722,0.46428004,105680.0,105670.0,0.20818412]
[1750717403962,0.46428004,105680.0,105670.0,0.001]
[1750717404208,0.46428004,105680.0,105660.0,0.22714222]
[1750717404435,0.43261877,105690.0,105670.0,0.33469156]
[1750717404654,0.43248004,105680.0,105670.0,0.21865249]
[1750717404870,0.43248004,105680.0,105670.0,0.21765249]
[1750717405524,0.03193873,105690.0,105680.0,0.20817533]
[1750717405744,0.46441877,105690.0,105680.0,0.20817533]
[1750717405949,0.46441877,105690.0,105670.0,0.21765258]
[1750717406163,0.43248004,105680.0,105670.0,0.22065258]
[1750717406376,0.43248004,105680.0,105670.0,0.20172673]
[1750717406606,0.46348004,105680.0,105670.0,0.01246342]
[1750717406835,0.031,105680.0,105670.0,0.003]
[1750717407051,0.46348004,105680.0,105670.0,0.003]
[1750717407268,0.46348004,105680.0,105670.0,0.22065792]
[1750717407478,0.46348004,105680.0,105670.0,0.22712071]
[1750717407726,0.46348004,105680.0,105670.0,0.003]
[1750717407952,0.5589819,105680.0,105670.0,0.003]
[1750717408406,0.12650186,105680.0,105670.0,0.003]
[1750717408619,0.12650186,105680.0,105670.0,0.01246333]
[1750717408840,0.5589819,105680.0,105670.0,0.003]
[1750717409077,0.46348004,105680.0,105670.0,0.20173171]
[1750717409312,0.43248004,105680.0,105670.0,0.22065774]
[1750717409546,0.5279819,105680.0,105670.0,0.003]
[1750717409987,0.50013873,105690.0,105670.0,0.0335]
[1750717410202,0.50013873,105690.0,105670.0,0.003]
[1750717410203,0.43248004,105680.0,105670.0,0.003]
[1750717410439,0.00013873,105690.0,105670.0,0.22065765]
[1750717410670,0.43248004,105680.0,105670.0,0.003]
[1750717410887,0.20197873,105690.0,105680.0,0.20817524]
[1750717411107,0.43261877,105690.0,105680.0,0.22709922]
[1750717411542,0.44145746,105690.0,105680.0,0.22709931]
[1750717411746,0.44145746,105690.0,105680.0,0.23456193]
[1750717412404,0.44145746,105690.0,105680.0,0.23556193]
[1750717412620,0.00897742,105690.0,105680.0,0.23556193]
[1750717413060,0.43261877,105690.0,105680.0,0.26566193]
[1750717413265,0.44145506,105690.0,105680.0,0.26566193]
[1750717413484,0.43261877,105690.0,105680.0,0.26542299]
[1750717413916,0.44145123,105690.0,105680.0,0.19025056]
[1750717414151,0.44145123,105690.0,105680.0,0.001]
[1750717414374,0.47425123,105690.0,105680.0,0.21863741]
[1750717414594,0.47425123,105690.0,105680.0,0.001]
[1750717415020,0.77147309,105690.0,105680.0,0.001]
[1750717415242,0.81611394,105690.0,105680.0,0.001]
[1750717415495,0.04177119,105690.0,105680.0,0.19025056]
[1750717415714,0.00897119,105690.0,105680.0,0.21863706]
[1750717415920,0.44145123,105690.0,105680.0,0.21863706]
[1750717417199,0.43261877,105690.0,105680.0,0.21863706]
[1750717418372,0.43261877,105690.0,105680.0,0.21863724]
[1750717418574,0.46541877,105690.0,105680.0,0.19025056]
[1750717418780,0.47424782,105690.0,105680.0,0.19971299]
[1750717418999,0.67504782,105690.0,105680.0,0.21863741]
[1750717419207,0.43261877,105690.0,105680.0,0.20917533]
[1750717419444,0.00013873,105690.0,105680.0,0.2280994]
[1750717419643,0.43261877,105690.0,105680.0,0.2280994]
[1750717419850,0.43261877,105690.0,105680.0,0.23756139]
[1750717419851,0.00013873,105690.0,105680.0,0.23756139]
[1750717420054,0.43261877,105690.0,105680.0,0.23756139]
[1750717420324,0.00013873,105690.0,105680.0,0.23756139]
[1750717420535,0.43261877,105690.0,105680.0,0.26766139]
[1750717420946,0.43261877,105690.0,105680.0,0.23756139]
[1750717421591,0.43261877,105690.0,105680.0,0.2186375]
[1750717422023,0.43261877,105690.0,105680.0,0.2280994]
[1750717422221,0.43261877,105690.0,105680.0,0.21863758]
[1750717422858,0.46501877,105690.0,105680.0,0.19025056]
[1750717423094,0.59062063,105690.0,105680.0,0.001]
[1750717423311,0.56052063,105690.0,105680.0,0.20917533]
[1750717423514,0.12804059,105690.0,105680.0,0.19971308]
[1750717423721,0.56052063,105690.0,105680.0,0.21863741]
[1750717423923,0.52812063,105690.0,105680.0,0.20917533]
[1750717424131,0.52812063,105690.0,105680.0,0.2186375]
[1750717424342,0.43261877,105690.0,105680.0,0.2186375]
[1750717424549,0.43261877,105690.0,105680.0,0.21863758]
[1750717424759,0.43261877,105690.0,105680.0,0.22809975]
[1750717424958,0.43261877,105690.0,105680.0,0.19025056]
[1750717425172,0.43261877,105690.0,105680.0,0.20917507]
[1750717425375,0.43261877,105690.0,105680.0,0.19025056]
[1750717425573,0.52812063,105690.0,105680.0,0.001]
[1750717425815,0.56052063,105690.0,105680.0,0.001]
[1750717428168,0.52812063,105690.0,105680.0,0.001]
[1750717428376,0.56022063,105690.0,105680.0,0.001]
[1750717429899,0.59262063,105690.0,105680.0,0.001]
[1750717430106,0.60716148,105690.0,105680.0,0.001]
[1750717430758,1.03964152,105690.0,105680.0,0.001]
[1750717430974,0.17468144,105690.0,105680.0,0.001]
[1750717431180,0.60716148,105690.0,105680.0,0.001]
[1750717431600,0.56022063,105690.0,105680.0,0.001]
[1750717433332,0.12774059,105690.0,105680.0,0.001]
[1750717433540,0.82950063,105690.0,105680.0,0.001]
[1750717434154,0.39702059,105690.0,105680.0,0.001]
[1750717434363,0.82950063,105690.0,105680.0,0.001]
[1750717435558,0.39702059,105690.0,105680.0,0.001]
[1750717435771,0.82950063,105690.0,105680.0,0.001]
[1750717436214,0.39702059,105690.0,105680.0,0.001]
[1750717436437,0.82950063,105690.0,105680.0,0.001]
[1750717437401,1.30732152,105690.0,105680.0,0.001]
[1750717437841,0.87484148,105690.0,105680.0,0.001]
[1750717438958,1.30732152,105690.0,105680.0,0.001]
[1750717439406,1.7161728,105690.0,105680.0,0.001]
[1750717439635,0.46418004,105670.0,105650.0,0.21768383]
[1750717439859,0.43248004,105660.0,105650.0,0.21768383]
[1750717440638,0.09550186,105670.0,105660.0,0.20821466]
[1750717440857,0.09550186,105670.0,105660.0,0.21767853]
[1750717441055,0.09550186,105670.0,105660.0,0.21767862]
[1750717441336,0.09550186,105670.0,105660.0,0.22714249]
[1750717441565,0.19908,105680.0,105670.0,0.19873171]
[1750717441812,0.19908,105680.0,105670.0,0.22712053]
[1750717442052,0.43248004,105680.0,105670.0,0.22712053]
[1750717442517,0.43248004,105680.0,105670.0,0.25822053]
[1750717442745,0.43248004,105680.0,105670.0,0.04056324]
[1750717443022,0.43248004,105680.0,105660.0,0.24181475]
[1750717443023,0.96046194,105680.0,105660.0,0.24181475]
[1750717443280,0.43248004,105670.0,105660.0,0.002]
[1750717443510,0.8980819,105670.0,105660.0,0.006]
[1750717443728,0.4027,105660.0,105630.0,0.0002]
[1750717443958,0.89506008,105640.0,105630.0,0.0002]
[1750717444201,1.06076194,105640.0,105630.0,0.0002]
[1750717444406,0.6282819,105640.0,105630.0,0.0002]
[1750717445304,1.09096194,105640.0,105630.0,0.00033889]
[1750717445545,0.22600186,105640.0,105630.0,0.00033889]
[1750717445785,1.13347013,105640.0,105630.0,0.00033889]
[1750717446020,1.06076194,105640.0,105630.0,0.00033889]
[1750717446261,6.34489579,105640.0,105630.0,0.00633889]
[1750717446477,6.34489579,105640.0,105620.0,0.0002]
[1750717446478,5.31643385,105630.0,105620.0,0.0002]
[1750717446694,5.31643385,105630.0,105580.0,0.2300314]
[1750717446695,0.031,105610.0,105590.0,0.22729232]
[1750717446924,0.19908,105610.0,105600.0,0.21780246]
[1750717447151,0.19908,105610.0,105600.0,0.08586753]
[1750717447398,0.19908,105610.0,105600.0,0.24930201]
[1750717447399,0.43248004,105610.0,105600.0,0.24930201]
[1750717447607,0.43248004,105610.0,105600.0,0.31623034]
[1750717447819,0.2674,105620.0,105610.0,0.20831297]
[1750717448039,0.63156004,105620.0,105610.0,0.20631315]
[1750717448445,0.19908,105620.0,105610.0,0.22524976]
[1750717448678,0.63156004,105620.0,105610.0,0.22524985]
[1750717448936,0.19908,105620.0,105610.0,0.23271811]
[1750717449157,0.43248004,105630.0,105620.0,0.21776069]
[1750717449372,0.26757865,105640.0,105630.0,0.21774069]
[1750717449590,0.70005869,105640.0,105630.0,0.21574069]
[1750717450050,0.70005869,105640.0,105630.0,0.22520724]
[1750717450274,0.70005869,105640.0,105630.0,0.21574069]
[1750717450480,0.43261869,105640.0,105630.0,0.23367362]
[1750717450702,0.63373869,105640.0,105630.0,0.22420724]
[1750717450912,0.63373869,105640.0,105630.0,0.21474078]
[1750717451126,0.43461869,105640.0,105630.0,0.006467]
[1750717451339,0.70305869,105640.0,105620.0,0.24825997]
[1750717451548,0.43248004,105630.0,105620.0,0.24825997]
[1750717451769,0.43248004,105630.0,105620.0,0.24826069]
[1750717452442,0.00113865,105640.0,105630.0,0.21774007]
[1750717452670,0.43361869,105640.0,105630.0,0.23877369]
[1750717452892,0.43361869,105640.0,105630.0,0.24524007]
[1750717453327,0.20025865,105640.0,105630.0,0.24524007]
[1750717453543,0.63273869,105640.0,105630.0,0.24524007]
[1750717453833,0.63273869,105640.0,105630.0,0.20827378]
[1750717453834,0.72724055,105640.0,105630.0,0.20827378]
[1750717454046,0.73224055,105640.0,105630.0,0.20827378]
[1750717454272,0.73224055,105640.0,105630.0,0.00946691]
[1750717454524,0.10064051,105640.0,105630.0,0.009467]
[1750717454759,0.00513865,105640.0,105630.0,0.38430893]
[1750717456159,0.00013865,105640.0,105630.0,0.38430893]
[1750717456421,0.00013865,105640.0,105630.0,0.38830893]
[1750717456671,0.00013865,105640.0,105630.0,0.38430893]
[1750717457121,0.0661,105660.0,105650.0,0.27849885]
[1750717457373,0.0661,105660.0,105650.0,0.37400071]
[1750717457629,0.0661,105660.0,105650.0,0.57308071]
[1750717458766,0.0661,105660.0,105650.0,0.58008071]
[1750717459944,0.08320615,105700.0,105690.0,0.24045547]
[1750717460243,0.08334493,105700.0,105690.0,0.24991647]
[1750717460476,0.51582497,105700.0,105690.0,0.28031647]
[1750717460706,0.08334493,105700.0,105690.0,0.24045565]
[1750717460920,0.61132683,105700.0,105690.0,0.18923266]
[1750717461144,0.61132683,105700.0,105670.0,0.18924115]
[1750717461145,0.64392683,105700.0,105670.0,0.18924115]
[1750717461402,0.17884679,105700.0,105680.0,0.23071219]
[1750717461614,0.43248004,105690.0,105680.0,0.1987121]
[1750717461840,0.21174679,105700.0,105680.0,0.20817453]
[1750717462066,0.43248004,105690.0,105680.0,0.22709842]
[1750717462288,0.43248004,105690.0,105680.0,0.20817453]
[1750717462528,0.43248004,105690.0,105680.0,0.2176367]
[1750717462752,0.08334493,105700.0,105690.0,0.23935547]
[1750717462972,0.08334493,105700.0,105690.0,0.24881647]
[1750717463198,0.08334493,105700.0,105690.0,0.25081647]
[1750717463431,0.08334493,105700.0,105690.0,0.24881647]
[1750717464149,0.51582497,105700.0,105690.0,0.24881647]
[1750717464373,0.08334493,105700.0,105690.0,0.24881647]
[1750717465022,0.08334493,105700.0,105690.0,0.28001647]
[1750717465502,0.0001,105730.0,105720.0,0.21755472]
[1750717465757,0.00703678,105780.0,105770.0,0.21745187]
[1750717465997,0.01024013,105790.0,105780.0,0.21743131]
[1750717466215,0.02549713,105790.0,105780.0,0.21669869]
[1750717466441,0.01024013,105790.0,105780.0,0.24749869]
[1750717466684,0.01070304,105790.0,105780.0,0.27586718]
[1750717466902,0.00692766,105800.0,105790.0,0.24821076]
[1750717467129,0.00692766,105800.0,105790.0,0.28001076]
[1750717467605,0.00706641,105800.0,105790.0,0.28001076]
[1750717467874,0.00706641,105800.0,105790.0,0.37551262]
[1750717468774,0.00706641,105800.0,105790.0,0.37851262]
[1750717469001,0.00706641,105800.0,105790.0,0.71851262]
[1750717469228,0.01605263,105810.0,105800.0,1.16472344]
[1750717469467,0.058,105830.0,105820.0,0.21734913]
[1750717469718,0.45,105840.0,105830.0,0.28186944]
[1750717469934,0.24,105870.0,105860.0,0.217267]
[1750717470157,0.2486993,105870.0,105860.0,0.56918971]
[1750717470390,0.2486993,105870.0,105860.0,0.249667]
[1750717470391,0.24883797,105870.0,105860.0,0.249667]
[1750717470617,0.24013867,105870.0,105860.0,0.217267]
[1750717470848,0.24013867,105870.0,105860.0,0.09550186]
[1750717471082,0.81853959,105870.0,105860.0,0.09550186]
[1750717471324,0.24879343,105870.0,105860.0,0.14518509]
[1750717471584,0.24879343,105870.0,105860.0,0.11684632]
[1750717471811,0.79452666,105870.0,105860.0,0.05985109]
[1750717472031,0.61949343,105870.0,105860.0,0.05098117]
[1750717472258,0.24879343,105870.0,105860.0,0.32970535]
[1750717472482,0.24879343,105870.0,105860.0,0.24461146]
[1750717472706,0.79452666,105870.0,105860.0,0.28010514]
[1750717472988,0.7858719,105870.0,105860.0,0.07280791]
[1750717473213,0.24013867,105870.0,105860.0,0.07228448]
[1750717473437,0.24013867,105870.0,105860.0,0.366686]
[1750717473671,0.24013867,105870.0,105860.0,0.42438044]
[1750717473891,0.24013867,105870.0,105860.0,0.71664129]
[1750717474110,0.24013867,105870.0,105860.0,0.77164129]
[1750717474335,0.24013867,105870.0,105860.0,0.75410044]
[1750717474572,0.24013867,105870.0,105860.0,0.79909828]
[1750717474802,0.24013867,105870.0,105860.0,0.49977828]
[1750717475017,0.24013867,105870.0,105860.0,0.72764995]
[1750717475231,0.24013867,105870.0,105860.0,0.49480995]
[1750717475540,0.24013867,105870.0,105860.0,0.41841211]
[1750717475752,0.24013867,105870.0,105860.0,0.37856775]
[1750717476412,0.24013867,105870.0,105860.0,0.66044775]
[1750717476638,0.24013867,105870.0,105860.0,0.66043444]
[1750717476860,0.24013867,105870.0,105860.0,0.66929211]
[1750717477083,0.24013867,105870.0,105860.0,0.6957315]
[1750717477310,0.17563867,105870.0,105860.0,0.82904995]
[1750717477539,0.11173867,105870.0,105860.0,0.73541828]
[1750717477764,0.11173867,105870.0,105860.0,0.64096631]
[1750717477987,0.11173867,105870.0,105860.0,0.63217919]
[1750717478457,0.11173867,105870.0,105860.0,0.76736415]
[1750717478674,0.11173867,105870.0,105860.0,0.71736415]
[1750717479510,0.11173867,105870.0,105860.0,0.76736415]
[1750717479734,0.06303867,105870.0,105860.0,1.10736415]
[1750717479967,0.00632973,105870.0,105860.0,1.27215116]
[1750717480426,0.00632973,105870.0,105860.0,1.81788439]
[1750717480691,0.00632973,105870.0,105860.0,1.66788439]
[1750717481134,0.00632973,105870.0,105860.0,1.59988439]
[1750717481361,6.037e-05,105890.0,105880.0,0.46722595]
[1750717481604,6.037e-05,105890.0,105880.0,1.02967887]
[1750717482726,6.037e-05,105890.0,105880.0,0.98667887]
[1750717482955,6.037e-05,105890.0,105880.0,0.72683887]
[1750717483218,6.037e-05,105890.0,105880.0,1.01471108]
[1750717483451,6.037e-05,105890.0,105880.0,0.76203108]
[1750717483671,6.037e-05,105890.0,105880.0,0.38683887]
[1750717483896,6.037e-05,105890.0,105880.0,0.64830476]
[1750717483897,0.03266037,105890.0,105880.0,0.64830476]
[1750717484126,0.03266037,105890.0,105880.0,0.6210897]
[1750717484353,6.037e-05,105890.0,105880.0,0.6310897]
[1750717484594,6.037e-05,105890.0,105880.0,0.63988733]
[1750717484825,6.037e-05,105890.0,105880.0,0.65743887]
[1750717485045,6.037e-05,105890.0,105880.0,0.60467227]
[1750717485974,6.037e-05,105890.0,105880.0,0.73107011]
[1750717486649,6.037e-05,105890.0,105880.0,0.80221831]
[1750717487357,0.0158187,105910.0,105900.0,0.21718494]
[1750717487585,0.01628058,105910.0,105900.0,0.38694399]
[1750717488517,0.01628058,105910.0,105900.0,0.72694399]
[1750717488735,0.01628058,105910.0,105900.0,0.68403126]
[1750717489382,0.01628058,105910.0,105900.0,0.34403126]
[1750717489617,0.74235903,105920.0,105910.0,0.21716443]
[1750717489839,0.31419196,105920.0,105910.0,0.63795379]
[1750717490056,0.37939196,105920.0,105910.0,0.33401075]
[1750717490276,0.27167042,105920.0,105910.0,0.58453075]
[1750717490502,0.27167042,105920.0,105910.0,0.63453075]
[1750717490719,0.26222119,105920.0,105910.0,0.65508116]
[1750717490965,0.26222119,105920.0,105910.0,0.66208116]
[1750717491183,0.29512119,105920.0,105910.0,0.66208116]
[1750717491406,0.25277196,105920.0,105910.0,0.487959]
[1750717491641,0.25277196,105920.0,105910.0,0.738399]
[1750717491862,0.16772848,105920.0,105910.0,0.738319]
[1750717492080,0.16722848,105920.0,105910.0,0.738319]
[1750717492352,0.0538381,105920.0,105910.0,0.76270384]
[1750717492580,0.0538381,105920.0,105910.0,0.46484364]
[1750717492811,0.0538381,105920.0,105910.0,0.8582009]
[1750717493032,0.0538381,105920.0,105910.0,0.85819962]
[1750717493261,0.0538381,105920.0,105910.0,0.6498401]
[1750717493488,0.0636,105970.0,105960.0,0.19818763]
[1750717493727,0.50059685,105970.0,105960.0,0.2823621]
[1750717493961,0.92890243,105970.0,105960.0,0.27292494]
[1750717494199,0.92900243,105970.0,105960.0,0.24568858]
[1750717494434,0.50069685,105970.0,105960.0,0.24568858]
[1750717494661,0.50069685,105970.0,105960.0,0.26348751]
[1750717494944,0.07229127,105970.0,105960.0,0.29179944]
[1750717495170,0.00513851,105980.0,105970.0,0.18873266]
[1750717495404,0.43344409,105980.0,105970.0,0.2625399]
[1750717495638,0.43344409,105980.0,105970.0,0.26378295]
[1750717495886,0.43344409,105980.0,105970.0,0.09182553]
[1750717495887,1.02544409,105980.0,105970.0,0.09182553]
[1750717496138,6.44964453,105980.0,105970.0,0.03581321]
[1750717496375,0.34,105970.0,105960.0,0.503]
[1750717496626,6.19150602,105970.0,105960.0,0.13592467]
[1750717496860,6.19150602,105970.0,105960.0,0.03582455]
[1750717497098,4.899393,105960.0,105950.0,0.18876344]
[1750717497317,5.75600416,105960.0,105950.0,0.18876344]
[1750717497540,0.85661116,105960.0,105940.0,0.1887861]
[1750717497783,0.42830558,105950.0,105940.0,0.1887861]
[1750717497999,5.24665486,105960.0,105950.0,0.18876828]
[1750717498213,0.0622,105950.0,105940.0,0.1887861]
[1750717498436,0.58600744,105950.0,105940.0,0.1887861]
[1750717498702,5.48540044,105950.0,105940.0,0.1887861]
[1750717498927,4.899393,105950.0,105940.0,0.26518394]
[1750717499155,0.0644,105930.0,105920.0,0.18875301]
[1750717499390,0.0644,105930.0,105920.0,0.19508424]
[1750717499631,0.49270558,105930.0,105920.0,0.19508446]
[1750717500079,0.0644,105930.0,105920.0,0.21396653]
[1750717500310,0.0326,105930.0,105920.0,0.41918806]
[1750717500535,0.0318,105960.0,105930.0,0.18880392]
[1750717500536,0.28252,105950.0,105930.0,0.18880392]
[1750717500760,0.46010558,105940.0,105930.0,0.18880392]
[1750717501261,0.49250558,105940.0,105930.0,0.18880392]
[1750717501507,0.0301,105930.0,105920.0,0.19875301]
[1750717501754,0.0301,105930.0,105920.0,0.29536547]
[1750717501755,0.45840558,105930.0,105920.0,0.29536547]
[1750717502013,0.45840558,105930.0,105920.0,0.22840809]
[1750717502253,5.92477704,105960.0,105950.0,0.18876828]
[1750717502472,0.28422,105950.0,105940.0,0.18877163]
[1750717502693,0.31672,105950.0,105940.0,0.19821075]
[1750717503132,0.0325,105950.0,105940.0,0.21398702]
[1750717503363,0.00013846,105960.0,105950.0,0.18876828]
[1750717503589,0.42844404,105960.0,105950.0,0.3000457]
[1750717503832,0.85674962,105960.0,105950.0,0.195103]
[1750717504054,0.92074962,105960.0,105950.0,0.195103]
[1750717504507,0.88934962,105960.0,105950.0,0.195103]
[1750717504736,0.92094962,105960.0,105940.0,0.18877163]
[1750717504956,0.11819076,105960.0,105950.0,0.18876828]
[1750717505220,0.87930006,105960.0,105950.0,0.18876828]
[1750717505434,1.16220006,105960.0,105950.0,0.18876828]
[1750717505654,1.19380006,105960.0,105950.0,0.18876828]
[1750717505878,0.94300006,105960.0,105950.0,0.18876828]
[1750717506104,0.71126404,105960.0,105950.0,0.2906083]
[1750717506331,1.17116962,105960.0,105950.0,0.1982066]
[1750717506554,0.33712905,105960.0,105950.0,0.21398257]
[1750717506779,0.03223846,105960.0,105950.0,0.22542036]
[1750717506996,0.88884962,105960.0,105950.0,0.1971062]
[1750717507217,0.46936072,105960.0,105950.0,0.22542036]
[1750717507443,0.03223846,105960.0,105950.0,0.22542036]
[1750717507696,0.46054404,105960.0,105950.0,0.20654452]
[1750717507929,0.88884962,105960.0,105950.0,0.21401518]
[1750717508155,0.87751194,105960.0,105950.0,0.0252469]
[1750717508382,0.052289,105960.0,105950.0,0.0252469]
[1750717508602,0.48059458,105960.0,105950.0,0.22345359]
[1750717508830,0.052289,105960.0,105950.0,0.22145359]
[1750717509054,0.05229658,105960.0,105950.0,0.02327468]
[1750717509295,0.48060216,105960.0,105950.0,0.22657151]
[1750717509530,0.48060216,105960.0,105950.0,0.23291923]
[1750717509764,0.48060216,105960.0,105950.0,0.24035702]
[1750717510000,0.05229658,105960.0,105950.0,0.2423571]